bitfinex/quotes_BTCUSD_20250114
["timestamp","ask_amount","ask_price","bid_price","bid_amount"]
[1736869404864,0.000854,96830.0,96829.0,0.20934198]
[1736869405060,0.000854,96830.0,96829.0,0.21134198]
[1736869405264,0.000854,96830.0,96829.0,0.25820198]
[1736869405475,0.000854,96830.0,96829.0,0.25720198]
[1736869405716,0.000854,96830.0,96829.0,0.25920198]
[1736869406030,0.000854,96830.0,96829.0,0.3634289]
[1736869406380,0.000854,96830.0,96829.0,0.3614289]
[1736869406597,0.000854,96830.0,96829.0,0.3654289]
[1736869407892,0.000854,96830.0,96829.0,0.26120198]
[1736869408240,0.000854,96830.0,96829.0,0.3654289]
[1736869408766,0.000854,96830.0,96829.0,0.3634289]
[1736869409525,0.000854,96830.0,96829.0,0.3594289]
[1736869409732,0.000854,96830.0,96829.0,0.44088902]
[1736869410138,0.000854,96830.0,96829.0,0.3594289]
[1736869410348,0.000854,96830.0,96829.0,0.3634289]
[1736869410565,0.000854,96830.0,96829.0,0.3594289]
[1736869410701,0.000854,96830.0,96829.0,0.3614289]
[1736869410901,0.000854,96830.0,96829.0,0.3634289]
[1736869411125,0.000854,96830.0,96829.0,0.44988902]
[1736869412582,0.000854,96830.0,96829.0,0.45388902]
[1736869412770,0.000854,96830.0,96829.0,0.3654289]
[1736869413087,0.0008538,96849.0,96848.0,0.206509]
[1736869413234,0.0008538,96849.0,96848.0,0.31073592]
[1736869414434,0.0008538,96849.0,96848.0,0.31873364]
[1736869414634,0.0008538,96849.0,96848.0,0.32173364]
[1736869414839,0.0008538,96849.0,96848.0,0.39732408]
[1736869415079,0.0008538,96849.0,96848.0,0.39432408]
[1736869415516,0.0008538,96849.0,96848.0,0.44418408]
[1736869415719,0.0018538,96849.0,96848.0,0.45218408]
[1736869416136,0.0018538,96849.0,96848.0,0.37659364]
[1736869418207,8e-07,96849.0,96848.0,0.52659364]
[1736869418410,8e-07,96849.0,96848.0,0.72659364]
[1736869420281,8e-07,96849.0,96848.0,0.62659364]
[1736869422776,8e-07,96849.0,96848.0,0.63072964]
[1736869423184,8e-07,96849.0,96848.0,0.73072964]
[1736869423733,8e-07,96849.0,96848.0,0.83982964]
[1736869424461,0.0008549,96874.0,96873.0,0.15]
[1736869424669,1e-07,96876.0,96875.0,0.25]
[1736869424848,1e-07,96876.0,96875.0,0.45422692]
[1736869425052,1e-07,96876.0,96875.0,0.62804141]
[1736869425257,0.16911124,96914.0,96875.0,0.62804141]
[1736869425258,0.0008125,96879.0,96878.0,0.25]
[1736869425484,5e-07,96879.0,96878.0,0.40108692]
[1736869425842,0.00049812,96879.0,96878.0,0.40108692]
[1736869427363,0.00049812,96879.0,96878.0,0.41008692]
[1736869427517,0.00049812,96879.0,96878.0,0.34180068]
[1736869427962,0.00049812,96879.0,96878.0,0.37129894]
[1736869428141,0.00049812,96879.0,96878.0,0.36229894]
[1736869428714,0.00049812,96879.0,96878.0,0.37128814]
[1736869429080,0.00049812,96879.0,96878.0,0.37528814]
[1736869430288,0.00049812,96879.0,96878.0,0.38428814]
[1736869430526,0.00049812,96879.0,96878.0,0.17307612]
[1736869430964,0.00049812,96879.0,96878.0,0.17486868]
[1736869431388,0.00049812,96879.0,96878.0,0.17086868]
[1736869431596,0.00049812,96879.0,96878.0,0.16286868]
[1736869431867,0.00049812,96879.0,96878.0,0.22044575]
[1736869432077,0.00049812,96879.0,96878.0,0.22344575]
[1736869432503,0.00049812,96879.0,96878.0,0.16586868]
[1736869433711,0.00049812,96879.0,96878.0,0.05265256]
[1736869434331,0.25444112,96879.0,96878.0,0.00579256]
[1736869434752,0.25444112,96879.0,96878.0,0.00279256]
[1736869434993,0.35924112,96879.0,96878.0,0.00479256]
[1736869435103,0.35924112,96879.0,96878.0,0.00379256]
[1736869435312,0.35924112,96879.0,96878.0,0.00179256]
[1736869435573,0.35924112,96879.0,96878.0,0.00279256]
[1736869435949,0.35924112,96879.0,96878.0,0.00179256]
[1736869436733,0.36024112,96879.0,96878.0,0.00279256]
[1736869436960,0.13079812,96879.0,96878.0,0.00279256]
[1736869437321,0.13379812,96879.0,96878.0,0.00279256]
[1736869438005,0.12979812,96879.0,96878.0,0.00179256]
[1736869438390,0.13279812,96879.0,96878.0,0.00179256]
[1736869441168,0.13279812,96879.0,96878.0,0.20823756]
[1736869441169,0.08529812,96879.0,96878.0,0.20823756]
[1736869441586,0.08329812,96879.0,96878.0,0.20823756]
[1736869441812,0.08529812,96879.0,96878.0,0.00179256]
[1736869441994,0.30789812,96879.0,96836.0,0.02066939]
[1736869442203,0.206465,96869.0,96849.0,0.10422692]
[1736869442334,0.023,96868.0,96849.0,0.10422692]
[1736869442552,0.206468,96867.0,96857.0,0.206488]
[1736869442757,0.206459,96872.0,96859.0,0.206485]
[1736869442963,0.206475,96865.0,96849.0,0.206507]
[1736869443177,0.206477,96863.0,96849.0,0.31073392]
[1736869443397,0.206483,96861.0,96849.0,0.206507]
[1736869443600,0.0784,96864.0,96849.0,0.206507]
[1736869443601,0.206477,96863.0,96853.0,0.206497]
[1736869443962,0.206483,96861.0,96857.0,0.001]
[1736869444116,0.206483,96861.0,96849.0,0.206505]
[1736869444937,0.003,96863.0,96848.0,0.417151]
[1736869445139,0.003,96863.0,96860.0,0.206481]
[1736869445364,0.0784,96864.0,96861.0,0.10422692]
[1736869445533,0.0784,96864.0,96862.0,0.206479]
[1736869445724,0.0784,96864.0,96862.0,0.253339]
[1736869446125,0.004,96863.0,96862.0,0.04686]
[1736869446328,0.004,96863.0,96862.0,0.253339]
[1736869446589,0.0758,96878.0,96877.0,0.206447]
[1736869447063,0.00049812,96879.0,96877.0,0.206447]
[1736869447064,0.00049812,96879.0,96877.0,0.31067392]
[1736869447273,0.00049812,96879.0,96878.0,0.10422692]
[1736869448675,0.00049812,96879.0,96878.0,0.15108692]
[1736869448880,0.00049812,96879.0,96878.0,0.17174393]
[1736869449395,0.00049812,96879.0,96878.0,0.23411133]
[1736869449775,0.00149812,96879.0,96878.0,0.24311133]
[1736869450373,0.00149812,96879.0,96878.0,0.16008692]
[1736869450594,0.00149812,96879.0,96878.0,0.16408692]
[1736869451280,1.2e-07,96879.0,96878.0,0.51408692]
[1736869453227,0.0008524,96909.0,96908.0,0.206381]
[1736869453522,0.00100165,96909.0,96908.0,0.31060792]
[1736869454095,0.00100165,96909.0,96908.0,0.38294621]
[1736869454296,0.00100165,96909.0,96908.0,0.31060792]
[1736869454550,0.00200165,96909.0,96908.0,0.31060792]
[1736869455121,0.00500165,96909.0,96908.0,0.31060792]
[1736869455704,0.00500165,96909.0,96908.0,0.35746792]
[1736869455911,0.00500165,96909.0,96908.0,0.43449221]
[1736869456096,0.00500165,96909.0,96908.0,0.36647722]
[1736869456334,0.00200165,96909.0,96908.0,0.36647722]
[1736869456607,0.00500165,96909.0,96908.0,0.36647722]
[1736869457157,0.00100165,96909.0,96908.0,0.36647722]
[1736869457565,0.00200165,96909.0,96908.0,0.37447722]
[1736869457961,0.00100165,96909.0,96908.0,0.37447722]
[1736869458323,0.00100165,96909.0,96908.0,0.37747722]
[1736869459125,0.00100165,96909.0,96908.0,0.45650244]
[1736869459346,0.00100165,96909.0,96908.0,0.37747722]
[1736869459768,6.5e-07,96909.0,96908.0,0.72747722]
[1736869459977,0.0008524,96919.0,96918.0,0.35636]
[1736869460192,0.0008524,96919.0,96918.0,0.50744692]
[1736869460547,0.0008524,96919.0,96918.0,0.60744692]
[1736869460723,0.0008524,96919.0,96918.0,2.10744692]
[1736869461140,0.0008524,96919.0,96918.0,2.11344692]
[1736869462719,8e-07,96920.0,96919.0,0.35]
[1736869462925,8e-07,96920.0,96919.0,0.50108692]
[1736869463422,8e-07,96927.0,96926.0,0.1]
[1736869463638,8e-07,96927.0,96926.0,0.50108692]
[1736869465342,4e-07,96937.0,96933.0,0.662656]
[1736869465544,0.0751,96964.0,96945.0,0.356302]
[1736869465751,0.00100317,96946.0,96945.0,0.60615912]
[1736869465966,0.00100317,96946.0,96945.0,2.10615912]
[1736869466107,0.00100317,96946.0,96945.0,2.15301912]
[1736869466304,1.7e-07,96946.0,96945.0,2.25301912]
[1736869466509,0.000854,96971.0,96970.0,0.206249]
[1736869466713,0.000854,96971.0,96970.0,0.33110082]
[1736869467307,2e-07,96973.0,96972.0,0.356245]
[1736869467516,0.0485,97001.0,97000.0,0.206185]
[1736869467711,0.0008536,97006.0,97000.0,0.31041192]
[1736869467959,0.00049744,97001.0,97000.0,0.206185]
[1736869468164,0.00049744,97001.0,97000.0,0.31041192]
[1736869468971,0.00049744,97001.0,97000.0,0.35703192]
[1736869469797,0.00049744,97001.0,97000.0,0.36599307]
[1736869470000,0.00049744,97001.0,97000.0,0.36799307]
[1736869470457,0.00049744,97001.0,97000.0,0.36599307]
[1736869471143,0.00049744,97001.0,97000.0,0.36699307]
[1736869472688,0.00049744,97001.0,97000.0,0.253805]
[1736869475779,0.00049744,97001.0,97000.0,0.252805]
[1736869475963,0.00049744,97001.0,97000.0,0.254805]
[1736869476834,0.00049744,97001.0,97000.0,0.270973]
[1736869477291,0.00135014,97001.0,97000.0,0.270973]
[1736869478105,0.00135014,97001.0,97000.0,0.254805]
[1736869479697,0.00135014,97001.0,97000.0,0.35903192]
[1736869481601,0.00135014,97001.0,97000.0,0.254805]
[1736869481804,0.00988751,97001.0,97000.0,0.254805]
[1736869482030,0.00135014,97001.0,97000.0,0.208185]
[1736869482268,0.00135014,97001.0,97000.0,0.31241192]
[1736869483792,0.00135014,97001.0,97000.0,0.35903192]
[1736869489667,0.00135014,97001.0,97000.0,0.50903192]
[1736869490091,1.4e-07,97001.0,97000.0,0.50903192]
[1736869490271,1.4e-07,97001.0,97000.0,0.57486997]
[1736869490612,1.4e-07,97001.0,97000.0,2.07486997]
[1736869491008,1.4e-07,97001.0,97000.0,0.57486997]
[1736869491209,1.4e-07,97001.0,97000.0,0.50703192]
[1736869491631,1.4e-07,97001.0,97000.0,0.51203192]
[1736869491831,1.4e-07,97001.0,97000.0,0.36203192]
[1736869492058,1.4e-07,97001.0,97000.0,0.35703192]
[1736869492254,1.4e-07,97001.0,97000.0,0.36603192]
[1736869492477,1.4e-07,97001.0,97000.0,0.37003192]
[1736869492687,1.4e-07,97001.0,97000.0,0.36103192]
[1736869492900,1.4e-07,97001.0,97000.0,0.36603192]
[1736869493222,1.4e-07,97001.0,97000.0,0.36103192]
[1736869493608,1.4e-07,97001.0,97000.0,0.36503192]
[1736869494379,1.4e-07,97001.0,97000.0,0.36103192]
[1736869494826,1.4e-07,97001.0,97000.0,0.36203192]
[1736869495413,1.4e-07,97001.0,97000.0,0.257805]
[1736869495612,0.01272251,97001.0,97000.0,0.257805]
[1736869496251,0.01272251,97001.0,97000.0,0.252805]
[1736869496459,1.4e-07,97001.0,97000.0,0.252805]
[1736869496691,1.4e-07,97001.0,97000.0,0.253805]
[1736869497023,1.4e-07,97001.0,97000.0,0.252805]
[1736869497237,1.4e-07,97001.0,97000.0,0.253805]
[1736869499081,0.01272251,97001.0,97000.0,0.253805]
[1736869499762,0.01272251,97001.0,97000.0,0.04762]
[1736869499982,0.01272251,97001.0,97000.0,0.001]
[1736869500616,0.1056,96987.0,96958.0,0.206274]
[1736869500928,0.023,96985.0,96969.0,0.206251]
[1736869501163,0.023,96979.0,96966.0,0.206257]
[1736869501395,0.023,96977.0,96966.0,0.00954744]
[1736869501601,0.20688921,96977.0,96957.0,0.09177674]
[1736869501818,0.0826,96965.0,96957.0,0.09177674]
[1736869502024,0.1,96961.0,96941.0,0.27533024]
[1736869502232,0.023,96958.0,96957.0,0.04662]
[1736869502967,0.206291,96950.0,96936.0,0.206321]
[1736869503174,0.206286,96953.0,96940.0,0.206311]
[1736869503371,0.023,96952.0,96940.0,0.206311]
[1736869503575,0.023,96952.0,96944.0,0.206304]
[1736869503783,0.1315,96960.0,96940.0,0.20257519]
[1736869504009,0.1315,96960.0,96957.0,0.206276]
[1736869504215,0.1315,96960.0,96955.0,0.20628]
[1736869504425,0.1315,96960.0,96931.0,0.15]
[1736869504627,0.02428935,96959.0,96947.0,0.206297]
[1736869504853,0.02428935,96959.0,96952.0,0.206286]
[1736869505067,0.023,96957.0,96952.0,0.206286]
[1736869505267,0.03620533,96958.0,96952.0,0.206286]
[1736869505478,0.1315,96960.0,96948.0,0.20257519]
[1736869505672,0.1315,96960.0,96957.0,0.206275]
[1736869506094,0.1315,96960.0,96957.0,0.412551]
[1736869506893,0.14465,96960.0,96954.0,0.206281]
[1736869507093,0.14465,96960.0,96942.0,0.206308]
[1736869507296,0.1315,96960.0,96956.0,0.206277]
[1736869508143,0.1315,96960.0,96956.0,0.412555]
[1736869508890,0.1315,96960.0,96958.0,0.206274]
[1736869510173,0.1315,96960.0,96958.0,0.21568814]
[1736869510780,0.0826,96960.0,96958.0,0.21568814]
[1736869510986,0.0826,96982.0,96959.0,0.10422692]
[1736869511190,0.0826,96982.0,96981.0,0.206225]
[1736869511770,0.0489,96989.0,96988.0,0.206211]
[1736869511976,0.07128112,96989.0,96988.0,0.206211]
[1736869512148,0.07128112,96989.0,96961.0,0.10422692]
[1736869512357,0.1056,96981.0,96968.0,0.206252]
[1736869512754,0.206215,96986.0,96953.0,0.206283]
[1736869512755,0.0489,96967.0,96953.0,0.206283]
[1736869512956,0.023,96965.0,96957.0,0.206277]
[1736869513160,0.01557892,96964.0,96957.0,0.206277]
[1736869513365,0.01557892,96964.0,96959.0,0.001]
[1736869513568,0.00128923,96963.0,96959.0,0.001]
[1736869513738,0.00128923,96963.0,96957.0,0.206277]
[1736869513947,0.00128923,96963.0,96950.0,0.206291]
[1736869513948,0.206266,96962.0,96950.0,0.206291]
[1736869514106,0.24794149,96962.0,96950.0,0.206291]
[1736869514309,0.20627,96960.0,96947.0,0.206297]
[1736869514529,0.023,96959.0,96947.0,0.19809061]
[1736869514932,0.023,96955.0,96938.0,0.00957914]
[1736869515175,0.00128948,96954.0,96947.0,0.04662]
[1736869515323,0.206296,96949.0,96947.0,0.04662]
[1736869515682,0.206298,96947.0,96935.0,0.206323]
[1736869515888,0.00128948,96946.0,96935.0,0.20682044]
[1736869516131,0.00128948,96946.0,96935.0,0.00049744]
[1736869516304,0.1,96943.0,96935.0,0.00049744]
[1736869516531,0.19431487,96945.0,96935.0,0.00049744]
[1736869516532,0.08028968,96942.0,96935.0,0.00049744]
[1736869516707,0.206311,96941.0,96935.0,0.00049744]
[1736869516910,0.00128965,96940.0,96935.0,0.00049744]
[1736869517071,0.20632,96937.0,96935.0,0.00049744]
[1736869517269,0.00128965,96936.0,96935.0,0.00049744]
[1736869517494,0.28451657,96936.0,96935.0,0.00049744]
[1736869517705,0.30622692,96936.0,96935.0,0.00049744]
[1736869518060,0.20622692,96936.0,96935.0,0.00049744]
[1736869518302,0.102,96936.0,96935.0,0.00049744]
[1736869518891,0.105,96936.0,96935.0,0.00049744]
[1736869519535,0.10628965,96936.0,96935.0,0.00049744]
[1736869520104,0.15868172,96936.0,96935.0,0.00049744]
[1736869520291,0.10528965,96936.0,96935.0,0.00149744]
[1736869520487,0.105,96936.0,96935.0,0.00049744]
[1736869520949,0.10628965,96936.0,96935.0,0.00049744]
[1736869521306,0.10328965,96936.0,96935.0,0.00049744]
[1736869521523,0.10528965,96936.0,96935.0,0.00049744]
[1736869521869,0.16808171,96936.0,96935.0,0.00049744]
[1736869522310,0.17108171,96936.0,96935.0,0.00049744]
[1736869522518,0.16979206,96936.0,96935.0,0.00049744]
[1736869522708,0.17108179,96936.0,96935.0,0.00049744]
[1736869522934,0.16808179,96936.0,96935.0,0.00049744]
[1736869523145,0.17729243,96936.0,96935.0,0.00049744]
[1736869523355,0.1780027,96936.0,96935.0,0.00149744]
[1736869523505,0.17729242,96936.0,96935.0,0.00049744]
[1736869523717,0.17729242,96936.0,96935.0,0.00229147]
[1736869524092,0.18029242,96936.0,96935.0,0.00229147]
[1736869524298,0.102,96936.0,96935.0,0.00229147]
[1736869524634,0.1,96925.0,96881.0,0.206438]
[1736869524845,0.023,96904.0,96887.0,0.00044917]
[1736869525064,0.023,96904.0,96889.0,0.206421]
[1736869525268,0.206388,96905.0,96887.0,0.04706917]
[1736869525269,0.023,96902.0,96887.0,0.04706917]
[1736869525476,0.023,96900.0,96889.0,0.04662]
[1736869525684,0.2064,96899.0,96888.0,0.206423]
[1736869525894,0.02429017,96898.0,96888.0,0.206423]
[1736869526323,0.02429017,96898.0,96887.0,0.00044917]
[1736869526324,0.10064061,96898.0,96887.0,0.00044917]
[1736869526540,0.07764061,96898.0,96887.0,0.00044917]
[1736869526750,0.079,96915.0,96904.0,0.206388]
[1736869526966,0.08028997,96915.0,96904.0,0.206388]
[1736869527303,0.023,96913.0,96900.0,0.206396]
[1736869527510,0.02429,96913.0,96900.0,0.206396]
[1736869527721,0.00129,96912.0,96904.0,0.206389]
[1736869527928,0.023,96913.0,96904.0,0.207389]
[1736869528720,0.025,96913.0,96904.0,0.207389]
[1736869528917,0.023,96911.0,96904.0,0.207389]
[1736869529138,0.206381,96908.0,96904.0,0.001]
[1736869529327,0.00129006,96907.0,96904.0,0.001]
[1736869529539,0.023,96905.0,96904.0,0.001]
[1736869529740,0.02429007,96905.0,96904.0,0.001]
[1736869529946,0.023,96898.0,96888.0,0.206422]
[1736869530172,0.00129017,96897.0,96888.0,0.253042]
[1736869530604,0.00129017,96897.0,96891.0,0.206415]
[1736869530802,0.02429015,96899.0,96891.0,0.04662]
[1736869531011,0.0787,96895.0,96891.0,0.04662]
[1736869531238,0.023,96894.0,96891.0,0.04662]
[1736869531592,0.023,96894.0,96887.0,0.00044917]
[1736869532740,0.023,96894.0,96889.0,0.206421]
[1736869533160,0.023,96894.0,96892.0,0.206415]
[1736869533563,0.024,96894.0,96892.0,0.206415]
[1736869533846,0.025,96894.0,96887.0,0.00044917]
[1736869534054,0.023,96892.0,96887.0,0.00044917]
[1736869534260,0.00957428,96913.0,96909.0,0.206378]
[1736869534475,0.0787,96927.0,96888.0,0.15]
[1736869534476,0.002,96894.0,96893.0,0.206413]
[1736869534648,0.001,96894.0,96893.0,0.253033]
[1736869534882,0.02429008,96914.0,96901.0,0.206395]
[1736869535087,0.023,96912.0,96901.0,0.206395]
[1736869535264,0.00129002,96911.0,96887.0,0.15044917]
[1736869535471,0.00129008,96910.0,96887.0,0.15044917]
[1736869535664,0.023,96908.0,96900.0,0.206396]
[1736869535867,0.03918247,96906.0,96900.0,0.206396]
[1736869536011,0.053,96902.0,96887.0,0.00044917]
[1736869536218,0.023,96900.0,96895.0,0.206407]
[1736869536435,0.00129015,96899.0,96896.0,0.206406]
[1736869536820,0.03,96902.0,96901.0,0.206396]
[1736869537028,0.03306531,96913.0,96901.0,0.206396]
[1736869537029,0.0456,96921.0,96901.0,0.31062292]
[1736869537235,0.0456,96921.0,96905.0,0.206387]
[1736869537442,0.0456,96921.0,96920.0,0.206355]
[1736869537642,0.05815898,96921.0,96920.0,0.206355]
[1736869538278,0.023,96920.0,96902.0,0.00954119]
[1736869538470,0.00128993,96919.0,96915.0,0.206365]
[1736869538672,0.02428986,96920.0,96915.0,0.20651417]
[1736869538977,0.023,96920.0,96919.0,0.206357]
[1736869539169,0.0787,96923.0,96920.0,0.206355]
[1736869539553,0.023,96922.0,96920.0,0.41271]
[1736869539729,0.023,96922.0,96920.0,0.207355]
[1736869539933,0.023,96922.0,96920.0,0.206355]
[1736869540136,0.023,96922.0,96920.0,0.252975]
[1736869540740,0.023,96922.0,96920.0,0.253975]
[1736869540949,0.03317,96922.0,96920.0,0.256975]
[1736869541144,0.06317,96922.0,96920.0,0.256975]
[1736869541971,0.22851669,96921.0,96920.0,0.05062]
[1736869542173,0.22722692,96921.0,96920.0,0.05062]
[1736869542338,0.22722692,96921.0,96920.0,0.004]
[1736869542538,0.023,96921.0,96920.0,0.004]
[1736869542738,0.023,96921.0,96920.0,0.001]
[1736869542943,0.023,96921.0,96918.0,0.206359]
[1736869543163,0.025,96921.0,96918.0,0.206359]
[1736869543769,0.026,96921.0,96918.0,0.206359]
[1736869543971,0.01347,96920.0,96918.0,0.206359]
[1736869544389,0.01347,96920.0,96918.0,0.207359]
[1736869544608,0.01347,96920.0,96918.0,0.001]
[1736869544828,0.50281676,96919.0,96918.0,0.001]
[1736869545031,0.50152692,96919.0,96918.0,0.001]
[1736869545420,0.5217151,96919.0,96918.0,0.001]
[1736869545675,0.53789899,96919.0,96918.0,0.001]
[1736869545907,0.53789899,96919.0,96915.0,0.00014917]
[1736869545908,0.123,96916.0,96915.0,0.00014917]
[1736869546060,0.56164391,96916.0,96915.0,0.00014917]
[1736869546258,0.56164391,96916.0,96880.0,0.206438]
[1736869546259,0.25,96901.0,96880.0,0.206438]
[1736869546421,0.173,96888.0,96887.0,0.00224349]
[1736869546635,0.52661736,96888.0,96887.0,0.00224349]
[1736869546845,0.62955384,96888.0,96887.0,0.00224349]
[1736869547245,0.62955384,96888.0,96860.0,3.00943962]
[1736869547246,0.57944,96880.0,96860.0,3.00943962]
[1736869547450,1.08776692,96880.0,96860.0,3.0]
[1736869547878,0.1,96861.0,96860.0,3.0]
[1736869548121,0.43370792,96861.0,96860.0,3.0]
[1736869548318,0.51837341,96861.0,96860.0,3.0]
[1736869548518,0.74727341,96861.0,96860.0,3.0]
[1736869548876,0.66260792,96861.0,96860.0,3.0]
[1736869549291,0.56260792,96861.0,96860.0,3.0]
[1736869549499,0.1019,96861.0,96860.0,3.0]
[1736869549964,0.0012906,96872.0,96860.0,3.0]
[1736869550118,0.009,96861.0,96860.0,3.001]
[1736869550332,0.00129056,96871.0,96860.0,3.0]
[1736869550512,0.003,96861.0,96860.0,3.0]
[1736869550711,0.009,96861.0,96860.0,3.001]
[1736869550917,0.02429056,96871.0,96860.0,3.0]
[1736869551117,0.023,96869.0,96860.0,3.0]
[1736869551316,0.00129059,96868.0,96860.0,3.0]
[1736869551520,0.001,96861.0,96860.0,3.0]
[1736869552614,0.002,96861.0,96860.0,3.0]
[1736869552814,0.002,96861.0,96860.0,3.04662]
[1736869553037,0.001,96861.0,96860.0,3.15084692]
[1736869553214,0.001,96861.0,96860.0,3.04662]
[1736869553746,0.023,96874.0,96861.0,0.206481]
[1736869553950,0.001,96861.0,96860.0,3.0]
[1736869554151,0.023,96868.0,96860.0,3.0]
[1736869554497,0.00129059,96867.0,96860.0,3.0]
[1736869555377,0.0012906,96867.0,96860.0,3.0]
[1736869555578,0.0012906,96867.0,96860.0,3.001]
[1736869555817,0.023,96865.0,96860.0,3.0]
[1736869556029,0.023,96861.0,96860.0,3.0]
[1736869556197,0.023,96861.0,96860.0,3.001]
[1736869556198,0.12722692,96861.0,96860.0,3.001]
[1736869556396,0.12722692,96861.0,96860.0,3.0]
[1736869556847,0.01618999,96866.0,96860.0,3.0]
[1736869557060,0.01618999,96866.0,96861.0,0.206481]
[1736869557272,0.01618999,96866.0,96863.0,0.206476]
[1736869557478,0.006,96867.0,96863.0,0.206476]
[1736869557676,0.006,96861.0,96860.0,3.001]
[1736869558723,0.006,96861.0,96860.0,3.04762]
[1736869558904,0.006,96861.0,96860.0,3.15184692]
[1736869559309,0.023,96887.0,96880.0,0.206439]
[1736869559507,0.023,96887.0,96860.0,3.36305208]
[1736869559733,0.00129034,96886.0,96878.0,0.206445]
[1736869559932,0.023,96887.0,96878.0,0.206445]
[1736869560130,0.02429031,96887.0,96878.0,0.206445]
[1736869560367,0.00014898,96888.0,96883.0,0.412865]
[1736869560576,2.475e-05,96888.0,96883.0,0.206432]
[1736869560785,0.002,96887.0,96885.0,0.206429]
[1736869560928,0.023,96886.0,96850.0,0.00179361]
[1736869561110,0.00129043,96885.0,96852.0,0.206499]
[1736869561317,0.002,96887.0,96883.0,0.206434]
[1736869561696,0.002,96887.0,96880.0,0.20644]
[1736869561897,0.02429021,96886.0,96844.0,0.0658]
[1736869562118,0.023,96877.0,96866.0,0.206469]
[1736869562316,0.023,96884.0,96850.0,0.2043688]
[1736869562519,0.00129044,96883.0,96861.0,0.206481]
[1736869562714,0.00129044,96883.0,96860.0,3.21415585]
[1736869563123,0.005,96886.0,96876.0,0.206447]
[1736869563535,0.005,96886.0,96861.0,0.10422692]
[1736869563536,0.023,96885.0,96881.0,0.206438]
[1736869563741,0.023,96885.0,96881.0,0.412876]
[1736869563973,0.002,96887.0,96881.0,0.206438]
[1736869564221,0.15166126,96886.0,96860.0,3.01158066]
[1736869564414,0.20257519,96870.0,96860.0,3.00179529]
[1736869564571,0.023,96864.0,96860.0,3.00179529]
[1736869564920,0.023,96867.0,96860.0,3.00179529]
[1736869565141,0.00129059,96866.0,96860.0,3.00179529]
[1736869565302,0.206477,96863.0,96860.0,3.00179529]
[1736869565501,0.023,96866.0,96860.0,3.00179529]
[1736869565703,0.10422692,96867.0,96860.0,3.00179529]
[1736869565704,0.04048129,96865.0,96860.0,3.00179529]
[1736869565903,0.229477,96863.0,96860.0,3.00179529]
[1736869566104,0.1721,96861.0,96860.0,3.00179529]
[1736869566310,0.0721,96861.0,96860.0,3.00179529]
[1736869566508,0.0798,96864.0,96860.0,3.00179529]
[1736869566709,0.412954,96863.0,96860.0,3.00179529]
[1736869567113,0.023,96862.0,96860.0,3.00179529]
[1736869567316,0.007,96861.0,96860.0,3.00179529]
[1736869567495,0.27002777,96861.0,96860.0,3.00179529]
[1736869567709,0.36725469,96861.0,96860.0,3.00179529]
[1736869568479,0.023,96861.0,96860.0,3.00179529]
[1736869569186,0.12722692,96861.0,96860.0,3.00179529]
[1736869569399,0.12722692,96861.0,96860.0,0.00179529]
[1736869569648,0.12851773,96861.0,96860.0,0.00179529]
[1736869569913,0.13051773,96861.0,96860.0,0.00179529]
[1736869570168,0.22511037,96861.0,96860.0,0.00179529]
[1736869570407,0.22381956,96861.0,96860.0,0.00179529]
[1736869570940,0.12922692,96861.0,96860.0,0.00179529]
[1736869571184,0.13251769,96861.0,96860.0,0.00179529]
[1736869571619,0.13051769,96861.0,96860.0,0.00179529]
[1736869572009,0.13022692,96861.0,96860.0,0.00179529]
[1736869572211,0.12951767,96861.0,96860.0,0.00179529]
[1736869572424,0.21301031,96861.0,96860.0,0.00179529]
[1736869572631,0.47001031,96861.0,96860.0,0.00179529]
[1736869572850,0.47171956,96861.0,96860.0,0.00179529]
[1736869573450,0.46471956,96861.0,96860.0,0.00179529]
[1736869573653,0.37271956,96861.0,96860.0,0.00179529]
[1736869574010,0.28022692,96861.0,96860.0,0.00179529]
[1736869574210,0.27722692,96861.0,96860.0,0.00179529]
[1736869574602,0.28022692,96861.0,96860.0,0.00179529]
[1736869575040,0.27722692,96861.0,96860.0,0.00179529]
[1736869575421,0.48922471,96861.0,96860.0,0.00179529]
[1736869575656,0.48022471,96861.0,96860.0,0.00179529]
[1736869575894,0.47722471,96861.0,96860.0,0.00179529]
[1736869576074,0.60712471,96861.0,96860.0,0.00179529]
[1736869576297,0.70212471,96861.0,96860.0,0.00179529]
[1736869576705,0.71112471,96861.0,96860.0,0.00179529]
[1736869577549,0.50812692,96861.0,96860.0,0.00179529]
[1736869577746,0.60812692,96861.0,96860.0,0.00179529]
[1736869577980,0.173,96851.0,96850.0,0.00179361]
[1736869578198,0.27722692,96851.0,96850.0,0.00179361]
[1736869579317,0.27722692,96851.0,96850.0,0.00229123]
[1736869579871,0.55469278,96851.0,96850.0,0.00229123]
[1736869580077,0.64569278,96851.0,96850.0,0.00229123]
[1736869580455,0.65269278,96851.0,96850.0,0.00229123]
[1736869580661,0.579517,96844.0,96843.0,0.00179361]
[1736869580929,0.68374392,96844.0,96843.0,0.00191784]
[1736869581099,0.76974652,96844.0,96843.0,0.00191784]
[1736869582507,0.77374652,96844.0,96843.0,0.00191784]
[1736869583057,0.78357688,96844.0,96843.0,0.00191784]
[1736869583319,0.90547688,96844.0,96843.0,0.00191784]
[1736869583537,0.91447688,96844.0,96843.0,0.00191784]
[1736869584274,0.82847428,96844.0,96843.0,0.00191784]
[1736869584490,0.72847428,96844.0,96843.0,0.00191784]
[1736869584710,0.82847428,96844.0,96843.0,0.00191784]
[1736869585602,0.8446698,96844.0,96843.0,0.00191784]
[1736869585876,0.7446698,96844.0,96843.0,0.00191784]
[1736869586023,0.94889672,96844.0,96843.0,0.00191784]
[1736869586218,0.61864392,96844.0,96843.0,0.00191784]
[1736869586468,0.81864392,96844.0,96843.0,0.00191784]
[1736869587884,0.81864392,96844.0,96829.0,0.00179298]
[1736869587885,0.556547,96830.0,96829.0,0.00179298]
[1736869588087,0.68377392,96830.0,96829.0,0.00194233]
[1736869588293,0.77280451,96830.0,96829.0,0.00194233]
[1736869589111,0.78180451,96830.0,96829.0,0.00194233]
[1736869589310,0.77280451,96830.0,96829.0,0.00194233]
[1736869589728,0.78180451,96830.0,96829.0,0.00194233]